bitfinex/quotes_SOLUSD_20220311
["timestamp","ask_amount","ask_price","bid_price","bid_amount"]
[1647039715527,123.1,81.077,80.985,203.437664]
[1647039715917,123.1,81.075,80.985,203.437664]
[1647039716136,123.1,81.075,80.985,174.677625]
[1647039716337,123.1,81.073,80.986,174.677625]
[1647039716542,123.1,81.073,80.987,174.677625]
[1647039716837,123.1,81.071,80.985,174.677625]
[1647039717040,5.441,81.07,80.985,174.677625]
[1647039717237,5.441,81.07,80.985,218.598423]
[1647039717238,123.1,81.069,80.985,218.598423]
[1647039717439,5.384,81.068,80.986,47.7384]
[1647039717641,5.384,81.068,80.986,266.336823]
[1647039717839,158.05906336,81.067,80.986,47.7384]
[1647039718039,196.97,81.065,80.962,23.8628]
[1647039718239,5.269,81.064,80.963,47.7384]
[1647039718439,123.1,81.063,80.963,47.7384]
[1647039718639,123.1,81.059,80.97,18.5205]
[1647039718838,5.155,81.058,80.971,8.694992]
[1647039719040,123.1,81.057,80.971,8.694992]
[1647039719239,5.098,81.056,80.972,123.1]
[1647039719439,3.04447957,81.057,80.974,123.1]
[1647039719644,3.04447957,81.057,80.973,68.138223]
[1647039719645,3.04447957,81.057,80.975,192.377608]
[1647039719838,3.04447957,81.057,80.976,44.904408]
[1647039720237,3.04447957,81.057,80.977,24.6697]
[1647039720439,3.04447957,81.057,80.978,44.904408]
[1647039721239,3.04447957,81.057,80.98,18.518]
[1647039721441,5.327,81.072,80.981,270.604199]
[1647039721639,4.827,81.072,80.982,172.1429]
[1647039722041,4.827,81.072,80.982,174.96459221]
[1647039722342,4.827,81.072,80.983,2.82169221]
[1647039722540,4.827,81.072,81.001,123.1]
[1647039722940,4.827,81.072,81.002,2.82169221]
[1647039724144,4.827,81.072,81.021,123.1]
[1647039724543,4.827,81.072,81.022,2.82169221]
[1647039725543,4.827,81.072,81.03,18.5004]
[1647039747096,4.827,81.072,81.031,123.1]
[1647039747297,4.827,81.072,81.04,18.503]
[1647039757602,4.827,81.072,81.05,18.5012]
[1647039761006,1.67272042,81.102,81.05,18.5012]
[1647039761411,1.67272042,81.105,81.05,18.5012]
[1647039761608,1.67272042,81.106,81.051,123.1]
[1647039761807,1.67272042,81.106,81.05,18.5012]
[1647039761808,1.67272042,81.106,81.061,123.1]
[1647039762008,1.67272042,81.114,81.061,123.1]
[1647039762208,1.67272042,81.117,81.063,123.1]
[1647039762409,1.67272042,81.115,81.063,123.1]
[1647039762610,1.67272042,81.116,81.063,123.1]
[1647039763208,1.67272042,81.118,81.07,18.4957]
[1647039763809,1.67272042,81.12,81.07,18.4957]
[1647039764011,1.67272042,81.119,81.07,18.4957]
[1647039765413,1.67272042,81.121,81.07,18.4957]
[1647039766811,1.67272042,81.122,81.07,18.4957]
[1647039767010,1.67272042,81.123,81.07,18.4957]
[1647039767611,1.67272042,81.122,81.07,18.4957]
[1647039769214,1.67272042,81.124,81.07,18.4957]
[1647039769415,1.67272042,81.123,81.071,6.165]
[1647039769813,1.67272042,81.124,81.063,24.0537]
[1647039770013,1.67272042,81.12,81.064,6.165]
[1647039770215,1.67272042,81.119,81.064,6.165]
[1647039770415,1.67272042,81.117,81.063,24.0537]
[1647039770618,6.73058559,81.137,81.063,24.0537]
[1647039770619,1.67272042,81.118,81.063,24.0537]
[1647039771616,1.67272042,81.122,81.07,18.4971]
[1647039772420,1.67272042,81.125,81.071,6.165]
[1647039772622,1.67272042,81.124,81.071,6.165]
[1647039773020,1.67272042,81.125,81.071,6.165]
[1647039774022,1.67272042,81.126,81.071,6.165]
[1647039776250,1.67272042,81.127,81.071,6.165]
[1647039776951,22.7336,81.138,81.08,18.495]
[1647039776952,1.67272042,81.126,81.08,18.495]
[1647039777150,1.67272042,81.126,81.081,6.165]
[1647039777350,1.67272042,81.13,81.081,6.165]
[1647039778750,22.7336,81.138,81.081,6.165]
[1647039778751,1.67272042,81.129,81.081,6.165]
[1647039779351,1.67272042,81.13,81.081,6.165]
[1647039780455,1.67272042,81.13,81.09,18.4926]
[1647039780951,1.67272042,81.132,81.09,18.4926]
[1647039781352,1.67272042,81.133,81.09,18.4926]
[1647039783052,1.67272042,81.134,81.09,18.4926]
[1647039783454,1.67272042,81.133,81.09,18.4926]
[1647039784256,1.67272042,81.132,81.09,18.4926]
[1647039786256,1.67272042,81.131,81.09,18.4926]
[1647039787059,1.67272042,81.132,81.09,18.4926]
[1647039787259,1.67272042,81.131,81.09,18.4926]
[1647039788159,1.67272042,81.134,81.09,18.4926]
[1647039788858,1.67272042,81.133,81.084,123.1]
[1647039790065,24.99,81.157,81.084,123.1]
[1647039790066,1.67272042,81.132,81.084,123.1]
[1647039790864,1.67272042,81.13,81.084,123.1]
[1647039791365,1.67272042,81.131,81.084,123.1]
[1647039791767,1.67272042,81.13,81.084,123.1]
[1647039792166,1.67272042,81.131,81.091,123.1]
[1647039792569,1.67272042,81.139,81.091,123.1]
[1647039792768,1.67272042,81.145,81.091,123.1]
[1647039792966,1.67272042,81.148,81.091,123.1]
[1647039793167,1.67272042,81.151,81.092,123.1]
[1647039793367,1.67272042,81.151,81.094,123.1]
[1647039794266,6.72766319,81.178,81.093,22.5147]
[1647039794267,1.67272042,81.153,81.101,123.1]
[1647039795071,1.67272042,81.152,81.101,123.1]
[1647039795267,1.67272042,81.155,81.101,123.1]
[1647039795469,1.67272042,81.155,81.111,123.1]
[1647039795667,1.67272042,81.163,81.111,123.1]
[1647039795867,1.67272042,81.166,81.113,123.1]
[1647039796770,1.67272042,81.169,81.121,123.1]
[1647039796969,1.67272042,81.172,81.123,123.1]
[1647039797169,1.67272042,81.173,81.123,123.1]
[1647039797572,1.67272042,81.174,81.123,123.1]
[1647039797968,1.67272042,81.176,81.123,123.1]
[1647039798170,1.67272042,81.176,81.125,123.1]
[1647039798770,1.67272042,81.176,81.131,123.1]
[1647039798970,1.67272042,81.178,81.131,123.1]
[1647039799371,1.67272042,81.178,81.133,123.1]
[1647039799870,1.67272042,81.181,81.134,129.26]
[1647039800673,1.67272042,81.181,81.135,22.7989]
[1647039800972,1.67272042,81.182,81.136,6.16]
[1647039801872,1.67272042,81.183,81.136,6.16]
[1647039802896,1.67272042,81.183,81.136,25.069]
[1647039804298,1.67272042,81.182,81.136,25.069]
[1647039804500,1.67272042,81.189,81.137,123.1]
[1647039804700,1.67272042,81.193,81.139,123.1]
[1647039804899,1.67272042,81.194,81.141,123.1]
[1647039805099,1.67272042,81.194,81.143,123.1]
[1647039805302,1.67272042,81.194,81.144,129.26]
[1647039805503,1.67272042,81.195,81.145,23.477]
[1647039805701,1.67272042,81.195,81.146,6.159]
[1647039805901,1.67272042,81.198,81.147,123.1]
[1647039806102,4.362625,81.608,81.146,6.159]
[1647039806103,1.67272042,81.21,81.151,123.1]
[1647039806303,1.67272042,81.21,81.153,123.1]
[1647039806503,1.67272042,81.215,81.155,123.1]
[1647039806702,1.67272042,81.22,81.157,123.1]
[1647039806904,1.67272042,81.221,81.161,123.1]
[1647039807103,1.67272042,81.221,81.163,123.1]
[1647039807305,1.67272042,81.225,81.165,123.1]
[1647039807506,1.67272042,81.225,81.171,123.1]
[1647039807704,1.67272042,81.227,81.173,123.1]
[1647039807908,1.67272042,81.228,81.175,123.1]
[1647039808104,1.67272042,81.231,81.177,123.1]
[1647039808305,1.67272042,81.232,81.179,123.1]
[1647039808504,1.67272042,81.232,81.181,123.1]
[1647039808703,1.67272042,81.232,81.18,24.6231]
[1647039808704,1.67272042,81.237,81.183,123.1]
[1647039808905,1.67272042,81.241,81.185,123.1]
[1647039809205,1.67272042,81.24,81.187,123.1]
[1647039809405,1.67272042,81.241,81.189,123.1]
[1647039809607,1.67272042,81.241,81.191,123.1]
[1647039809904,1.67272042,81.244,81.193,123.1]
[1647039810107,1.67272042,81.244,81.195,123.1]
[1647039810305,1.67272042,81.244,81.197,123.1]
[1647039810509,1.67272042,81.252,81.199,123.1]
[1647039810709,1.67272042,81.26,81.201,123.1]
[1647039810908,14.89,81.32,81.189,5.12]
[1647039810909,1.67272042,81.273,81.211,123.1]
[1647039811108,1.67272042,81.273,81.213,123.1]
[1647039811307,1.67272042,81.277,81.214,6.154]
[1647039811509,1.67272042,81.277,81.221,123.1]
[1647039811707,1.67272042,81.277,81.223,123.1]
[1647039811907,1.67272042,81.283,81.224,6.152]
[1647039812309,1.67272042,81.29,81.224,6.152]
[1647039812508,1.67272042,81.294,81.231,123.1]
[1647039812708,1.67272042,81.299,81.232,6.152]
[1647039812912,1.67272042,81.3,81.233,123.1]
[1647039813111,1.67272042,81.306,81.235,123.1]
[1647039813308,1.67272042,81.306,81.236,6.152]
[1647039813509,1.67272042,81.305,81.236,6.152]
[1647039813709,1.67272042,81.307,81.241,123.1]
[1647039813910,47.7744,81.316,81.243,123.1]
[1647039813911,1.67272042,81.311,81.243,123.1]
[1647039814111,1.67272042,81.312,81.244,6.151]
[1647039814313,1.67272042,81.312,81.245,123.1]
[1647039814611,1.67272042,81.312,81.246,6.151]
[1647039814811,1.67272042,81.313,81.246,6.151]
[1647039815013,49.44712042,81.316,81.246,6.151]
[1647039815211,47.7744,81.316,81.246,6.151]
[1647039815618,1.67272042,81.319,81.246,6.151]
[1647039815812,1.67272042,81.32,81.246,6.151]
[1647039816011,1.67272042,81.322,81.246,6.151]
[1647039816412,1.67272042,81.323,81.246,6.151]
[1647039816611,151.85527231,81.33,81.246,6.151]
[1647039816612,1.67272042,81.322,81.246,6.151]
[1647039816813,1.67272042,81.324,81.246,6.151]
[1647039817014,1.67272042,81.323,81.247,2.80803771]
[1647039817215,1.67272042,81.323,81.248,6.151]
[1647039817715,1.67272042,81.323,81.25,14.89]
[1647039817916,1.67272042,81.324,81.251,129.251]
[1647039818116,1.67272042,81.322,81.251,129.251]
[1647039818316,1.67272042,81.322,81.253,123.1]
[1647039818518,1.67272042,81.322,81.254,6.151]
[1647039819117,1.67272042,81.323,81.254,6.151]
[1647039819517,1.67272042,81.324,81.254,6.151]
[1647039819716,1.67272042,81.323,81.254,6.151]
[1647039819918,1.67272042,81.322,81.254,6.151]
[1647039820117,1.67272042,81.323,81.254,6.151]
[1647039820318,1.67272042,81.322,81.254,6.151]
[1647039820518,1.67272042,81.323,81.254,6.151]
[1647039820721,1.67272042,81.326,81.254,6.151]
[1647039820922,1.67272042,81.327,81.254,6.151]
[1647039821120,1.67272042,81.327,81.255,2.80803771]
[1647039821322,1.67272042,81.327,81.257,5.62346854]
[1647039821521,1.67272042,81.329,81.258,6.15]
[1647039821722,127.96884325,81.33,81.256,6.15]
[1647039822824,1.67272042,81.326,81.256,6.15]
[1647039823022,1.67272042,81.325,81.254,6.15]
[1647039823225,1.67272042,81.324,81.254,6.15]
[1647039823426,1.67272042,81.323,81.254,6.15]
[1647039824123,1.67272042,81.322,81.254,6.15]
[1647039824525,1.67272042,81.321,81.254,6.15]
[1647039825128,1.67272042,81.327,81.254,6.15]
[1647039825324,1.67272042,81.316,81.254,6.15]
[1647039825727,1.67272042,81.311,81.254,6.15]
[1647039825926,1.67272042,81.308,81.254,6.15]
[1647039826125,1.67272042,81.31,81.254,6.15]
[1647039826325,1.67272042,81.309,81.254,6.15]
[1647039826626,1.67272042,81.312,81.254,6.15]
[1647039826825,1.67272042,81.311,81.254,6.15]
[1647039827025,1.67272042,81.31,81.254,6.15]
[1647039828028,18.458,81.32,81.254,6.15]
[1647039828029,1.67272042,81.309,81.254,6.15]
[1647039828851,1.67272042,81.308,81.254,6.15]
[1647039829050,1.67272042,81.306,81.254,6.15]
[1647039829250,1.67272042,81.31,81.254,6.15]
[1647039829853,1.67272042,81.312,81.254,6.15]
[1647039830656,1.67272042,81.311,81.254,6.15]
[1647039831053,1.67272042,81.308,81.254,6.15]
[1647039831755,1.67272042,81.307,81.254,6.15]
[1647039831955,1.67272042,81.305,81.254,6.15]
[1647039832856,1.67272042,81.3,81.254,6.15]
[1647039833857,1.67272042,81.295,81.254,6.15]
[1647039834060,1.67272042,81.294,81.254,6.15]
[1647039835059,1.67272042,81.289,81.254,6.15]
[1647039836064,1.67272042,81.283,81.254,6.15]
[1647039836961,1.67272042,81.282,81.254,6.15]
[1647039837164,1.67272042,81.278,81.254,6.15]
[1647039837366,1.67272042,81.277,81.254,6.15]
[1647039837766,1.67272042,81.275,81.254,6.15]
[1647039837969,1.67272042,81.278,81.254,6.15]
[1647039838370,1.67272042,81.277,81.254,6.15]
[1647039838769,1.67272042,81.278,81.254,6.15]
[1647039838969,1.67272042,81.274,81.254,6.15]
[1647039839797,1.67272042,81.269,81.254,6.15]
[1647039840172,1.67272042,81.268,81.254,6.15]
[1647039841072,1.67272042,81.266,81.254,6.15]
[1647039841272,1.67272042,81.265,81.254,6.15]
[1647039841471,1.67272042,81.267,81.254,6.15]
[1647039842070,1.67272042,81.265,81.254,6.15]
[1647039842672,1.67272042,81.267,81.254,6.15]
[1647039842874,1.67272042,81.269,81.254,6.15]
[1647039845676,1.67272042,81.27,81.254,6.15]
[1647039846677,1.67272042,81.271,81.254,6.15]
[1647039847504,1.67272042,81.272,81.254,6.15]
[1647039848103,1.67272042,81.271,81.254,6.15]
[1647039848303,1.67272042,81.272,81.254,6.15]
[1647039851307,1.67272042,81.273,81.254,6.15]
[1647039851907,1.67272042,81.274,81.254,6.15]
[1647039852608,1.67272042,81.273,81.254,6.15]
[1647039853308,1.67272042,81.274,81.254,6.15]
[1647039855008,1.67272042,81.275,81.254,6.15]
[1647039855416,1.67272042,81.274,81.254,6.15]
[1647039855710,1.67272042,81.274,81.237,6.152]
[1647039856110,1.67272042,81.273,81.237,6.152]
[1647039857912,1.67272042,81.274,81.237,6.152]
[1647039859112,1.67272042,81.279,81.237,6.152]
[1647039859314,1.67272042,81.277,81.236,6.152]
[1647039859517,1.67272042,81.277,81.213,21.06599164]
[1647039859518,1.67272042,81.272,81.234,6.152]
[1647039859713,1.67272042,81.262,81.215,6.152]
[1647039859913,1.67272042,81.253,81.183,29.019]
[1647039860115,1.67272042,81.24,81.183,29.019]
[1647039860313,1.67272042,81.244,81.183,29.019]
[1647039860715,1.67272042,81.243,81.183,29.019]
[1647039860920,1.67272042,81.241,81.183,29.019]
[1647039861114,1.67272042,81.243,81.183,29.019]
[1647039861615,1.67272042,81.243,81.183,152.119]
[1647039861815,1.67272042,81.243,81.183,29.019]
[1647039862214,18.4744,81.25,81.183,29.019]
[1647039862215,1.67272042,81.242,81.183,29.019]
[1647039862414,18.4744,81.25,81.183,29.019]
[1647039862415,1.67272042,81.243,81.183,29.019]
[1647039863218,1.67272042,81.242,81.183,29.019]
[1647039863515,1.67272042,81.241,81.183,29.019]
[1647039863714,18.4753,81.24,81.183,29.019]
[1647039864917,18.4753,81.24,81.183,6.154]
[1647039865116,18.4753,81.24,81.161,6.156]
[1647039865317,20.14802042,81.24,81.162,22.6191]
[1647039865517,18.4753,81.24,81.163,6.157]
[1647039865718,1.67272042,81.236,81.163,6.157]
[1647039865918,123.1,81.229,81.157,6.157]
[1647039866118,1.67272042,81.224,81.157,6.157]
[1647039866318,1.67272042,81.224,81.137,22.6191]
[1647039866319,1.67272042,81.225,81.138,6.158]
[1647039866519,1.67272042,81.224,81.138,6.158]
[1647039866817,1.67272042,81.22,81.138,6.158]
[1647039867023,1.67272042,81.223,81.138,6.158]
[1647039867318,28.61785,81.224,81.138,6.158]
[1647039868519,123.1,81.223,81.138,6.158]
[1647039868921,28.61785,81.222,81.138,6.158]
[1647039869525,123.1,81.221,81.138,6.158]
[1647039869724,1.67272042,81.22,81.138,6.158]
[1647039870028,123.1,81.219,81.138,6.158]
[1647039870228,159.32785,81.219,81.138,6.158]
[1647039870428,1.67272042,81.216,81.122,6.159]
[1647039870626,1.67272042,81.21,81.122,6.159]
[1647039870824,18.4883,81.19,81.122,6.159]
[1647039874529,18.4883,81.19,81.112,23.985]
[1647039875532,18.4883,81.19,81.122,123.1]
[1647039875733,18.4883,81.19,81.123,6.16]
[1647039876635,18.4883,81.19,81.122,6.16]
[1647039878437,47.978,81.208,81.123,24.3113]
[1647039878640,47.978,81.208,81.125,123.1]
[1647039878852,47.978,81.208,81.127,123.1]
[1647039879039,47.978,81.208,81.129,123.1]
[1647039879239,47.978,81.208,81.131,123.1]
[1647039879441,47.978,81.208,81.133,123.1]
[1647039879641,47.978,81.208,81.14,18.4796]
[1647039879841,47.978,81.208,81.142,123.1]
[1647039880041,47.978,81.208,81.143,6.159]
[1647039880643,47.978,81.208,81.144,24.3113]
[1647039881459,27.59581614,81.231,81.151,123.1]
[1647039881658,28.61785,81.239,81.151,123.1]
[1647039881859,47.367,81.249,81.161,123.1]
[1647039882057,47.367,81.249,81.16,14.89]
[1647039882058,47.367,81.249,81.163,123.1]
[1647039882458,47.367,81.249,81.164,2.82279063]
[1647039882860,47.08855,81.26,81.181,123.1]
[1647039883062,1.67272042,81.266,81.183,123.1]
[1647039883319,1.67272042,81.269,81.183,123.1]
[1647039883462,1.67272042,81.27,81.183,123.1]
[1647039883659,27.59581614,81.266,81.183,123.1]
[1647039883860,27.59581614,81.266,81.184,23.8866]
[1647039884261,28.61785,81.265,81.184,23.8866]
[1647039884662,27.59581614,81.264,81.184,23.8866]
[1647039885061,28.61785,81.263,81.184,23.8866]
[1647039885262,18.4705,81.26,81.19,18.4695]
[1647039888568,18.4705,81.26,81.184,23.8866]
[1647039889433,1.67272042,81.258,81.192,5.22085143]
[1647039889633,1.67272042,81.258,81.193,23.0698]
[1647039889785,1.67272042,81.259,81.193,23.0698]
[1647039890383,1.67272042,81.258,81.193,23.0698]
[1647039890582,20.14322042,81.26,81.193,23.0698]
[1647039890785,1.67272042,81.259,81.193,23.0698]
[1647039892505,1.67272042,81.258,81.193,23.0698]
[1647039893105,1.67272042,81.259,81.193,23.0698]
[1647039893306,18.4705,81.26,81.193,23.0698]
[1647039893307,1.67272042,81.258,81.193,23.0698]
[1647039894306,1.67272042,81.256,81.193,23.0698]
[1647039894506,1.67272042,81.259,81.193,23.0698]
[1647039894705,1.67272042,81.26,81.193,23.0698]
[1647039895148,1.67272042,81.26,81.195,5.2201648]
[1647039895308,1.67272042,81.262,81.195,5.2201648]
[1647039895507,1.67272042,81.261,81.195,5.2201648]
[1647039895708,1.67272042,81.262,81.195,5.2201648]
[1647039895910,1.67272042,81.264,81.195,5.2201648]
[1647039896309,1.67272042,81.266,81.195,5.2201648]
[1647039897713,1.67272042,81.266,81.195,4.7201648]
[1647039898012,29.26853656,81.266,81.195,4.7201648]
[1647039898213,27.59581614,81.266,81.195,4.7201648]
[1647039899628,27.59581614,81.266,81.193,28.28950707]
[1647039900520,28.61785,81.265,81.193,28.28950707]
[1647039900717,18.4707,81.26,81.193,28.28950707]
[1647039901418,46.06651614,81.26,81.193,28.28950707]
[1647039902221,18.4707,81.26,81.193,28.28950707]
[1647039902620,1.67272042,81.266,81.193,28.28950707]
[1647039902822,1.67272042,81.267,81.193,28.28950707]
[1647039903021,1.67272042,81.269,81.193,28.28950707]
[1647039903220,1.67272042,81.27,81.193,28.28950707]
[1647039903419,1.67272042,81.269,81.193,28.28950707]
[1647039903821,27.59581614,81.268,81.193,28.28950707]
[1647039904503,1.67272042,81.267,81.195,5.1576648]
[1647039904621,29.26853656,81.268,81.195,5.1576648]
[1647039904823,27.59581614,81.267,81.195,5.1576648]
[1647039905121,29.26853656,81.267,81.195,5.1576648]
[1647039906322,1.67272042,81.264,81.195,5.1576648]
[1647039906524,1.67272042,81.263,81.195,5.1576648]
[1647039906727,1.67272042,81.264,81.195,5.1576648]
[1647039907825,1.67272042,81.263,81.195,5.1576648]
[1647039908025,1.67272042,81.264,81.195,5.1576648]
[1647039908228,1.67272042,81.26,81.195,5.1576648]
[1647039908426,1.67272042,81.259,81.195,5.1576648]
[1647039909226,1.67272042,81.257,81.195,5.1576648]
[1647039909529,1.67272042,81.256,81.193,28.22700707]
[1647039910429,1.67272042,81.252,81.193,28.22700707]
[1647039911235,1.67272042,81.247,81.193,28.22700707]
[1647039912132,1.67272042,81.246,81.193,28.22700707]
[1647039913232,1.67272042,81.245,81.193,28.22700707]
[1647039914260,1.67272042,81.245,81.195,5.1576648]
[1647039916236,1.67272042,81.244,81.195,5.1576648]
[1647039919736,1.67272042,81.246,81.195,5.1576648]
[1647039920537,1.67272042,81.248,81.195,5.1576648]
[1647039920741,1.67272042,81.249,81.195,5.1576648]
[1647039921641,1.67272042,81.249,81.194,128.25720707]
[1647039921741,1.67272042,81.249,81.201,123.1]
[1647039921940,1.67272042,81.257,81.201,123.1]
[1647039922140,1.67272042,81.258,81.202,2.82286051]
[1647039922742,1.67272042,81.258,81.204,123.1]
[1647039922938,1.67272042,81.259,81.211,123.1]
[1647039923339,1.67272042,81.26,81.211,123.1]
[1647039923540,1.67272042,81.26,81.213,123.1]
[1647039924044,1.67272042,81.262,81.213,123.1]
[1647039924242,1.67272042,81.264,81.213,123.1]
[1647039924841,1.67272042,81.265,81.213,123.1]
[1647039926067,1.67272042,81.266,81.212,23.1644]
[1647039926950,1.67272042,81.267,81.212,23.1644]
[1647039927149,1.67272042,81.267,81.204,24.6795]
[1647039927150,1.67272042,81.26,81.204,24.6795]
[1647039927348,1.67272042,81.251,81.204,24.6795]
[1647039927744,1.67272042,81.252,81.173,46.1101]
[1647039927884,1.67272042,81.249,81.197,5.15720707]
[1647039928051,1.67272042,81.252,81.197,5.15720707]
[1647039928451,1.67272042,81.255,81.197,5.15720707]
[1647039928659,1.67272042,81.256,81.197,5.15720707]
[1647039929053,1.67272042,81.255,81.197,5.15720707]
[1647039932358,1.67272042,81.254,81.197,5.15720707]
[1647039933060,1.67272042,81.253,81.197,5.15720707]
[1647039933259,1.67272042,81.254,81.197,5.15720707]
[1647039933578,1.67272042,81.254,81.198,24.6917]
[1647039933940,1.67272042,81.255,81.198,24.6917]
[1647039934083,1.67272042,81.254,81.198,24.6917]
[1647039934479,1.67272042,81.255,81.198,24.6917]
[1647039934880,1.67272042,81.254,81.198,24.6917]
[1647039937085,1.67272042,81.254,81.199,123.1]
[1647039937284,1.67272042,81.257,81.201,123.1]
[1647039937483,1.67272042,81.258,81.201,123.1]
[1647039937985,1.67272042,81.258,81.2,14.89]
[1647039938183,1.67272042,81.258,81.2,33.3553]
[1647039938384,6.71850852,81.279,81.2,33.3553]
[1647039938385,1.67272042,81.255,81.2,14.89]
[1647039938585,1.67272042,81.254,81.2,14.89]
[1647039941192,1.67272042,81.255,81.2,14.89]
[1647039943790,1.67272042,81.251,81.2,14.89]
[1647039943993,1.67272042,81.25,81.2,14.89]
[1647039944192,1.67272042,81.25,81.199,5.15674937]
[1647039944391,1.67272042,81.249,81.199,5.15674937]
[1647039944592,1.67272042,81.242,81.199,5.15674937]
[1647039944795,1.67272042,81.232,81.199,5.15674937]
[1647039944992,1.67272042,81.229,81.199,5.15674937]
[1647039945193,124.77272042,81.229,81.199,5.15674937]
[1647039945395,1.67272042,81.227,81.199,5.15674937]
[1647039945591,1.67272042,81.228,81.199,5.15674937]
[1647039945791,1.67272042,81.227,81.199,5.15674937]
[1647039946279,1.67272042,81.227,81.151,24.8485]
[1647039946391,1.67272042,81.226,81.152,23.8086]
[1647039946592,1.67272042,81.224,81.152,23.8086]
[1647039946997,1.67272042,81.226,81.152,23.8086]
[1647039947995,1.67272042,81.227,81.152,23.8086]
[1647039948798,1.67272042,81.229,81.152,23.8086]
[1647039948996,1.67272042,81.228,81.152,23.8086]
[1647039949196,124.77272042,81.229,81.152,23.8086]
[1647039949396,1.67272042,81.228,81.152,23.8086]
[1647039950005,1.67272042,81.22,81.152,23.8086]
[1647039950202,1.67272042,81.218,81.152,23.8086]
[1647039950502,1.67272042,81.217,81.152,23.8086]
[1647039950903,1.67272042,81.22,81.152,23.8086]
[1647039951506,1.67272042,81.221,81.152,23.8086]
[1647039951905,1.67272042,81.222,81.152,23.8086]
[1647039952111,1.67272042,81.223,81.152,23.8086]
[1647039952535,1.67272042,81.218,81.152,23.8086]
[1647039952734,1.67272042,81.22,81.152,23.8086]
[1647039953132,1.67272042,81.221,81.152,23.8086]
[1647039953333,124.77272042,81.221,81.152,23.8086]
[1647039953533,123.1,81.218,81.152,23.8086]
[1647039954931,27.24851667,81.219,81.152,23.8086]
[1647039955135,123.1,81.218,81.152,23.8086]
[1647039956033,27.24851667,81.219,81.152,23.8086]
[1647039957237,123.1,81.218,81.152,23.8086]
[1647039957437,27.24851667,81.219,81.152,23.8086]
[1647039958438,123.1,81.218,81.152,23.8086]
[1647039958841,150.34843,81.218,81.13,18.4817]
[1647039959438,27.24843,81.218,81.131,123.1]
[1647039959641,27.24843,81.218,81.144,24.8929]
[1647039960437,123.1,81.217,81.144,24.8929]
[1647039964140,1.67272042,81.224,81.144,24.8929]
[1647039964541,123.1,81.225,81.144,24.8929]
[1647039965441,150.34843,81.225,81.144,24.8929]
[1647039965642,178.31032614,81.225,81.144,24.8929]
[1647039965841,1.67272042,81.222,81.144,24.8929]
[1647039966241,123.1,81.221,81.144,24.8929]
[1647039966442,124.77272042,81.221,81.144,24.8929]
[1647039966644,123.1,81.219,81.144,24.8929]
[1647039967267,22.503,81.22,81.144,24.8929]
[1647039967544,24.17572042,81.22,81.144,24.8929]
[1647039967746,22.503,81.22,81.144,24.8929]
[1647039968147,123.1,81.219,81.144,24.8929]
[1647039968343,124.77272042,81.219,81.144,24.8929]
[1647039968545,1.67272042,81.219,81.144,24.8929]
[1647039969647,24.17572042,81.22,81.144,24.8929]
[1647039969845,22.503,81.22,81.144,24.8929]
[1647039970047,24.17572042,81.22,81.144,24.8929]
[1647039971045,1.67272042,81.216,81.144,24.8929]
[1647039972148,1.67272042,81.213,81.144,24.8929]
[1647039972347,1.67272042,81.216,81.144,24.8929]
[1647039973052,1.67272042,81.216,81.145,6.159]
[1647039973949,1.67272042,81.211,81.145,6.159]
[1647039975051,1.67272042,81.21,81.145,6.159]
[1647039975651,40.983,81.22,81.145,6.159]
[1647039975652,1.67272042,81.211,81.145,6.159]
[1647039976052,1.67272042,81.208,81.145,6.159]
[1647039976451,1.67272042,81.211,81.145,6.159]
[1647039976852,1.67272042,81.21,81.145,6.159]
[1647039978154,1.67272042,81.209,81.145,6.159]